Cogmind - Beta 10.2 @@@ ROGUE MODE // 2021.06.27 @ 21:35:31 Player: Peter Result: Destroyed by G-34 Mercenary with Small Laser Performance ------------- Evolutions (1) 500 Regions Visited (3) 600 Robots Destroyed (19) 95 Value Destroyed (326) 326 Prototype IDs (0) 0 Alien Tech Used (0) 0 Bonus (0) 0 TOTAL SCORE: 1521 Bonus ------- None Cogmind --------- Core Integrity 0/400 Matter 297/300 Energy 100/100 System Corruption 0% Temperature Cool (6) Movement Walking (120) Location -9/Materials Parts ------- > --- POWER (1) -------- (None) > --- PROPULSION (2) --- Aluminum Leg Aluminum Leg > --- UTILITY (2) ------ Small Storage Unit > --- WEAPON (4) ------- Small Laser Assault Rifle > --- INVENTORY (6) ---- EM Pulse Gun Peak State ------------ > --- POWER ------------ Ion Engine > --- PROPULSION ------- Aluminum Leg Aluminum Leg > --- UTILITY ---------- Small Storage Unit > --- WEAPON ----------- Small Laser Assault Rifle > --- INVENTORY -------- (None) [Rating: 6] Favorites ----------- Power Ion Engine Engine Ion Engine Propulsion Aluminum Leg Leg Aluminum Leg Utility Small Storage Unit Storage Small Storage Unit Weapon Assault Rifle Energy Gun Small Laser Ballistic Gun Assault Rifle Build | -11 -10 -10 -9 ------- Run | Scr Mat Min Mat Slots Evolved 2 | . . . 2 Power . | . . . . Propulsion . | . . . . Utility . | . . . . Weapon 2 | . . . 2 Parts Attached 8 | 8 . . . Power 1 | 1 . . . Engine 1 | 1 . . . Core . | . . . . Reactor . | . . . . Propulsion 2 | 2 . . . Treads . | . . . . Leg 2 | 2 . . . Wheel . | . . . . Hover . | . . . . Flight . | . . . . Utility 1 | 1 . . . Device . | . . . . Storage 1 | 1 . . . Processor . | . . . . Hackware . | . . . . Protection . | . . . . Artifact . | . . . . Weapon 4 | 4 . . . Energy Gun 3 | 3 . . . Energy Cannon . | . . . . Ballistic Gun 1 | 1 . . . Ballistic Cannon . | . . . . Launcher . | . . . . Special Weapon . | . . . . Impact Weapon . | . . . . Slashing Weapon . | . . . . Piercing Weapon . | . . . . Special Melee Weapon . | . . . . Unidentified Prototypes . | . . . . Parts Lost 1 | . . . 1 Power 1 | . . . 1 Propulsion . | . . . . Utility . | . . . . Weapon . | . . . . Highest Loss Streak 1 | . . . 1 Average Slot Usage (%) 82 | . 85 85 64 Engine 13 | . 14 14 9 Leg 27 | . 28 28 22 Storage 13 | . 14 14 11 Energy Gun 13 | . 14 14 11 Ballistic Gun 13 | . 14 14 11 Naked Turns . | . . . . Heaviest Build 13 | 13 8 8 8 Greatest Support 20 | 20 20 20 20 Greatest Overweight (x) 2 | 2 . . . Average Overweight (x) . | . . . . Largest Inventory Capacity 6 | 6 6 6 6 Average Capacity 5 | 5 6 6 6 Most Carried 3 | 3 1 1 1 Average Carried . | . 1 1 1 Final Capacity 6 | 6 6 6 6 Final Carried 1 | 1 1 1 1 Class Distribution -------------------- 100% | Mutant Dominant Class ---------------- Mutant | -10/Materials Mutant | -10/Mines Mutant | -9/Materials Resources | -11 -10 -10 -9 ----------- Run | Scr Mat Min Mat Matter Collected 412 | 251 71 84 6 Remotely . | . . . . Salvage Created 598 | . 122 419 57 Parts 48 | . 11 32 5 Haulers Intercepted . | . . . . Recyclers Shooed 1 | . . 1 . Parts Field Recycled . | . . . . Retrieved Matter . | . . . . Parts Self-Destructed . | . . . . Prevented . | . . . . Kills | -11 -10 -10 -9 ------- Run | Scr Mat Min Mat Combat Hostiles Destroyed 11 | . 5 5 1 Guns 11 | . 5 5 1 Classes Destroyed 7 | . 2 4 1 Builder 6 | . . 6 . Recycler 2 | . . 2 . Watcher 1 | . . . 1 Swarmer 5 | . 3 2 . Grunt 3 | . 2 . 1 Demolisher 2 | . . 2 . Assembled 1 | . . 1 . Best Kill Streak 6 | . 5 6 1 Combat Bots Only 5 | . 5 3 1 Max Kills in Single Turn 1 | . 1 1 1 Gunslinging . | . . . . Exploded . | . . . . Melee . | . . . . Uniques/NPCs Destroyed . | . . . . Combat | -11 -10 -10 -9 -------- Run | Scr Mat Min Mat Damage Taken 20857 | . 153 706 19998 Core 9999 | . . . 9999 Absorbed by Shields . | . . . . Core Remaining (%) 100 | 100 . 100 . Volleys Fired 45 | . 14 28 3 Largest 2 | . 2 2 2 Hottest 60 | . 60 60 60 Shots Fired 85 | . 24 55 6 Gun 85 | . 24 55 6 Cannon . | . . . . Launcher . | . . . . Special . | . . . . Kinetic 45 | . 14 28 3 Thermal 40 | . 10 27 3 Explosive . | . . . . Electromagnetic . | . . . . Robot Hit Streak 4 | . 4 3 2 Robot Miss Streak 3 | . 3 3 1 Penetration Max . | . . . . Secondary Targets 4 | . 2 2 . Max Gunslinging Chain 1 | . 1 1 . Shots Hit Robots 41 | . 12 26 3 Core Hits 21 | . 6 13 2 Critical Hits 2 | . 1 1 . Critical Kills . | . . . . Critical Parts Destroyed 2 | . 1 1 . Melee Attacks . | . . . . Impact . | . . . . Slashing . | . . . . Piercing . | . . . . Sneak Attacks . | . . . . Combat Hostiles . | . . . . Follow-up Attacks . | . . . . Damage Inflicted 268052 | . 5060 232995 29997 Guns 268051 | . 5059 232995 29997 Cannons . | . . . . Explosions . | . . . . Melee . | . . . . Ramming 1 | . 1 . . Kinetic 147978 | . 4995 122985 19998 Thermal 120073 | . 64 110010 9999 Explosive . | . . . . Electromagnetic . | . . . . Impact . | . . . . Slashing . | . . . . Piercing . | . . . . Highest Corruption . | . . . . Average Corruption . | . . . . Corruption Purged . | . . . . Overload Shots . | . . . . Overflow Damage . | . . . . Projectiles . | . . . . Explosions . | . . . . Melee . | . . . . Knockbacks . | . . . . Impact . | . . . . Kinetic . | . . . . Secondary . | . . . . Self-Inflicted Damage . | . . . . Shots . | . . . . Rammed 1 | . 1 . . Targets Rammed 1 | . 1 . . Kicked . | . . . . Crushed . | . . . . Highest Temperature 36 | . 2 36 . Average Temperature 12 | . 2 20 . Received Heat Transfer 134 | . 42 80 12 Siege Activations . | . . . . Robots Corrupted . | . . . . Combat Hostiles . | . . . . Parts Fried . | . . . . Impact Corruptions . | . . . . Robots Melted . | . . . . Combat Hostiles . | . . . . Parts Melted . | . . . . Heat Transferred 500 | . 150 325 25 Parts Sabotaged . | . . . . Parts Stolen . | . . . . Parts Stripped . | . . . . Power Chain Reactions . | . . . . Missiles Intercepted . | . . . . Alert | -11 -10 -10 -9 ------- Run | Scr Mat Min Mat Peak Influence 252 | . 110 252 70 Initial 42 | . . 42 26 Average 76 | . 78 98 38 Maximum Alert Level 1 | . . 1 . Low Security (%) 94 | 100 100 90 100 Level 1 5 | . . 9 . Level 2 . | . . . . Level 3 . | . . . . Level 4 . | . . . . Level 5 . | . . . . High Security . | . . . . Max Security . | . . . . Squads Dispatched 1 | . . . 1 Investigation 1 | . . . 1 Extermination . | . . . . Reinforcement . | . . . . Assault . | . . . . Garrison . | . . . . Intercept . | . . . . Construction Impeded . | . . . . Haulers Reinforced . | . . . . Stealth | -11 -10 -10 -9 --------- Run | Scr Mat Min Mat Distress Signals . | . . . . Communications Jammed . | . . . . Distress Signals . | . . . . Times Spotted 41 | . 6 33 2 Peak Tracking Total 20 | . 3 20 1 Tactical Retreats 5 | . . 5 . Traps | -11 -10 -10 -9 ------- Run | Scr Mat Min Mat Traps Triggered . | . . . . Indirectly . | . . . . Trap Hack Attempts . | . . . . Triggered . | . . . . Disarmed . | . . . . Reprogrammed . | . . . . Reused . | . . . . Traps Extracted . | . . . . Installed . | . . . . Triggered . | . . . . Machines | -11 -10 -10 -9 ---------- Run | Scr Mat Min Mat Machines Disabled 1 | . . 1 . Max in Single Turn 1 | . . 1 . Machines Sabotaged . | . . . . Garrisons Compromised . | . . . . Overloaded Fab Kills . | . . . . Fab Network Shutdowns . | . . . . Hacking | -11 -10 -10 -9 --------- Run | Scr Mat Min Mat Machines Accessed 2 | . . 1 1 Terminals 1 | . . . 1 Fabricators . | . . . . Repair Stations . | . . . . Recycling Units . | . . . . Scanalyzers . | . . . . Garrison Access . | . . . . Total Hacks 9 | . . 1 8 Successful 5 | . . 1 4 Failed 4 | . . . 4 Catastrophic 1 | . . . 1 Database Lockouts . | . . . . Manual . | . . . . Terminals 8 | . . . 8 Fabricators . | . . . . Repair Stations . | . . . . Recycling Units . | . . . . Scanalyzers . | . . . . Garrison Access . | . . . . Terminal Hacks 5 | . . 1 4 Record 3 | . . . 3 Open Door 1 | . . 1 . Terminal Index 1 | . . . 1 Fabricator Hacks . | . . . . Repair Station Hacks . | . . . . Recycling Unit Hacks . | . . . . Scanalyzer . | . . . . Garrison Access Hacks . | . . . . Unauthorized Hacks . | . . . . Terminals . | . . . . Fabricators . | . . . . Repair Stations . | . . . . Recycling Units . | . . . . Scanalyzers . | . . . . Garrison Access . | . . . . Data Cores Recovered . | . . . . Used . | . . . . Hacking Detections 1 | . . . 1 Full Trace Events 1 | . . . 1 Feedback Events . | . . . . Feedback Blocked . | . . . . Robot Schematics Acquired . | . . . . Robots Built . | . . . . Matter . | . . . . Time . | . . . . Total Robot Build Rating . | . . . . Part Schematics Acquired . | . . . . Parts Built . | . . . . Matter . | . . . . Time . | . . . . Total Part Build Rating . | . . . . Parts Repaired . | . . . . Time . | . . . . Parts Recycled . | . . . . Recycled Matter . | . . . . Retrieved Matter . | . . . . Retrieved Components . | . . . . Parts Scanalyzed . | . . . . Part Schematics Acquired . | . . . . Parts Damaged . | . . . . Bothacking | -11 -10 -10 -9 ------------ Run | Scr Mat Min Mat Used RIF Installer . | . . . . Robots Hacked . | . . . . Non-combat . | . . . . Combat . | . . . . Robot Hacks Applied . | . . . . Relay Couplers Released . | . . . . Robots Rewired . | . . . . Allies Hacked . | . . . . Hacks Repelled . | . . . . Allies | -11 -10 -10 -9 -------- Run | Scr Mat Min Mat Total Allies 2 | . . 2 . Largest Group 2 | . . 2 . Highest-Rated Group 42 | . . 42 . Highest-Rated Ally 31 | . . 31 . Total Orders . | . . . . Ally Attacks 5 | . . 5 . Total Damage 41 | . . 41 . Kills 2 | . . 2 . Allies Corrupted . | . . . . Allies Melted . | . . . . Intel | -11 -10 -10 -9 ------- Run | Scr Mat Min Mat Robot Analysis Total . | . . . . Derelict Logs Recovered . | . . . . Drone Launches . | . . . . Drone Recoveries . | . . . . Exploration | -11 -10 -10 -9 ------------- Run | Scr Mat Min Mat Turns Passed 992 | 129 196 579 88 Spaces Moved 718 | 109 131 412 66 Core 40 | 40 . . . Treads . | . . . . Legs 678 | 69 131 412 66 Wheels . | . . . . Hover . | . . . . Flight . | . . . . Fastest Speed 50 | 50 120 120 120 Average Speed 117 | 102 120 120 120 Slowest Speed 150 | 150 120 120 120 Overloaded Moves . | . . . . Propulsion Burnouts . | . . . . Robots Hopped . | . . . . Cave-ins Triggered . | . . . . Exploration Rate (%) 28 | 6 17 81 8 Regions Visited 3 Branch Regions 1 Pre-discovered Areas . | . . . . Known Exits Taken . | . . . . Unknown Exits Taken 3 | 1 1 1 . Scrap Searched 2 | . . 2 . Spaces Dug . | . . . . Terrain Destroyed 33 | . 7 24 2 Melee . | . . . . Projectile 33 | . 7 24 2 AOE . | . . . . Terrain Rammed . | . . . . Walls Destroyed . | . . . . Machines Disabled . | . . . . Actions | -11 -10 -10 -9 --------- Run | Scr Mat Min Mat Total 780 | 125 145 441 69 Wait 2 | . . 2 . Move 715 | 108 130 411 66 Hop . | . . . . Pick Up 8 | 8 . . . Fast Attach . | . . . . Attach 6 | 6 . . . Detach . | . . . . Swap 2 | 2 . . . Drop 1 | 1 . . . Fire 45 | . 14 28 3 Melee . | . . . . Ram . | . . . . Kick 1 | . 1 . . Crush . | . . . . Escape Stasis . | . . . . Rewire . | . . . . Trap . | . . . . Miscellaneous . | . . . . Route ------- -11/Scrapyard -10/Materials -10/Mines -9/Materials History --------- Turn | Location | Event 4 | -11/Scrapyard | Discovered new exit (range 16) 130 | -11/Scrapyard | Entered Materials 204 | -10/Materials | Met 8R-AWN 221 | -10/Materials | Discovered new exit (range 15) 302 | -10/Materials | Build established: Mutant 326 | -10/Materials | Entered Mines 328 | -10/Mines | Followed 8R-AWN into the Mines 403 | -10/Mines | Assembled infested the area 408 | -10/Mines | Assisted by a Guerilla fighting off Assembled 574 | -10/Mines | Found a damaged Exp. Sensor Array with a note attached 787 | -10/Mines | Met a Derelict who couldn't figure out how to use a Trap Extractor 890 | -10/Mines | Discovered new exit (range 13) 905 | -10/Mines | Entered Materials 905 | -9/Materials | Evolved 2 slots: Weapon x2 993 | -9/Materials | Destroyed by G-34 Mercenary with Small Laser Last Messages --------------- prevent passage and contain the threat. >>Query(DSF) Distributed [Storage] Facility. An area designated for storage of materials and components. Distribution serves two purposes, making local access to resources easier while also minimizing losses in the event that one is compromised. >>Index(Terminals) Found 12 terminals. Downloaded coordinate data. 00941_ ALERT: Suspicious activity at Terminal M006. Dispatching Investigation squad. 00941_ Terminal unresponsive. 00952_ W-16 Scout destroyed. 00977_ G-34 Mercenary destroyed. 00987_ Acquired 6 matter. 00989_ Ion Engine destroyed. 00989_ Destroyed Ion Engine. 00993_ M-13 Machinist fits Backup Power I on G-34 Mercenary. [Achievement: Torch] [Achievement: Punisher] Map ----- +----------------------------------------------------+ | ?????????????????????????????????????????????????? | | ?????????????????????????????????????????????????? | | ?????????????????????????????????????????????????? | | ?????????????????????????????????????????????????? | | ?????????????????????????????????????????????????? | | ?????????????????????????????????????????????????? | | ?????????????????????????????????????????????????? | | ??????????????????????????????????????#########??? | | ??????????????????????????????????????# #??? | | ??????????????????????????????????????# #??? | | ??????????????????????????????????????# #??? | | ???????????????????????????????######## #####??? | | ???????????????????????????????# # #??????? | | ???????????????????????????????# # #??????? | | ????????????????????????????##?# " + #??????? | | ?????????????????????????? #?# T # ######## | | ???????????????????????? ?"" #?# " # # | | ?????????????????????? "R" #?#= # # | | ?????????????????????? " " ??######## # """ | | ?????????????????????? ?????????# # """ | | ???????????????????????""" ??????????# # """ | | ???????????????????????""" ??????????# + | | ????????????????????????"" ???????????# # | | ???????????????????????? ???????????# # |! | | ????????????????????#+###/############# # | | | ????????????????????# @g # | | ????????????????????###; %= # | | ?????????????????# # ############# ######## | | ?????????????????# """?# #???????????# #??????? | | ?????????????????# ""??# ;???????????#* #??????? | | ?????????????????# ????# g#???????????#%= #??????? | | ???????????????????????# m#???????????#!! #??????? | | ???????????????????????+ +???????????# #??????? | | ???????????????????????# ;???????????# #??????? | | ???????????????????????# #???????????# #??????? | | ??????????????????????? ???????????? #??????? | | ??????????????????????? ???????????? #??????? | | ???????????????????????" ???????????? #??????? | | ???????????????????????" ???????????? #??????? | | ???????????????????????" ??????????? #??????? | | ???????????????????????? ??????????? #??????? | | ???????????????????????? ???????????""" #??????? | | ??????????????????????????????????????"" #??????? | | ???????????????????????????????????????? ???????? | | ?????????????????????????????????????????????????? | | ?????????????????????????????????????????????????? | | ?????????????????????????????????????????????????? | | ?????????????????????????????????????????????????? | | ?????????????????????????????????????????????????? | | ?????????????????????????????????????????????????? | +----------------------------------------------------+ Best States ------------- Heat Dissipation 28 Energy Generation 35 Energy Capacity 400 Matter Stores 300 Matter Capacity 300 Sight Range 16 Terrain Scan Density 10 Evasion (%) 50 Item Schematics ----------------- None Robot Schematics ------------------ None Fabricated ------------ Nothing Alien Tech Used ----------------- None Achievements -------------- Hard Hitter I Survived The Infestation Punisher Torch Turtlemind Challenges ------------ None Game ------ Seed KineticWardroneChip Manual? 0 Play Time 00:15:54 Cumulative 16.1 hours Start 2021.06.27 @ 21:19:36 End 2021.06.27 @ 21:35:31 Sessions 1 Manual Loads 0 Difficulty Rogue Special Mode None Game No. 13 Rogue 13 Adventurer 0 Explorer 0 Win Type - Total 1 Types 1/0/0/0/0/0/0/0/0 Lore% 19 Gallery% 23 Achievement% 30 Wizard Run 0 Options --------- ASCII 0 Keyboard 0 Movement Numpad Keybinds 0 Fullscreen 1 Font 18/SmallcapsGlow Map View 76x50 Tactical HUD 1 Map Filters NONE Filters NONE Steam 1 RUN: fcb54c75-8499-48af-b657-a895e6b1e615